bitfinex/quotes_ETHUSD_20250223
["timestamp","ask_amount","ask_price","bid_price","bid_amount"]
[1740279579863,3.62977,2755.0,2754.7,0.0150906]
[1740279581967,3.63002,2754.8,2754.7,0.0150906]
[1740279582163,6.63002,2754.8,2754.7,0.0150906]
[1740279582369,3.0,2754.8,2754.7,0.0150906]
[1740279591605,6.63002,2754.8,2754.7,0.0150906]
[1740279592598,3.0,2754.8,2754.7,0.0150906]
[1740279592968,6.63002,2754.8,2754.7,0.0150906]
[1740279594007,3.0,2754.8,2754.7,0.0150906]
[1740279594172,6.63002,2754.8,2754.7,0.0150906]
[1740279594709,3.0,2754.8,2754.7,0.0150906]
[1740279595905,0.7985,2755.2,2754.7,0.0150906]
[1740279596094,3.62943,2755.3,2754.8,0.3654]
[1740279596295,0.55,2755.3,2754.7,0.0150906]
[1740279596473,3.62984,2755.0,2754.7,0.0150906]
[1740279598486,3.63002,2754.8,2754.7,0.0150906]
[1740279598691,6.63002,2754.8,2754.7,0.0150906]
[1740279599103,3.0,2754.8,2754.7,0.0150906]
[1740279600397,16.01376405,2757.7,2754.8,0.3654]
[1740279600398,0.8071,2755.5,2754.8,0.3654]
[1740279600724,4.43631,2755.5,2754.8,0.56813966]
[1740279600910,3.0,2755.3,2754.8,0.56813966]
[1740279601076,3.0,2755.3,2754.8,4.19813966]
[1740279601282,3.62951,2755.2,2754.8,0.56813966]
[1740279602009,3.62938,2755.3,2754.8,0.56813966]
[1740279602591,0.55,2755.4,2754.8,0.3654]
[1740279602915,3.62983,2755.0,2754.8,0.3654]
[1740279605418,3.62954,2755.2,2754.8,0.3654]
[1740279605909,3.0,2755.4,2754.8,0.3654]
[1740279606114,3.62944,2755.3,2754.8,0.93115866]
[1740279608216,3.62944,2755.3,2754.8,4.56117866]
[1740279608382,6.6293,2755.4,2754.8,5.27989083]
[1740279608582,0.8071,2755.8,2755.0,0.3654]
[1740279608779,3.62904,2755.6,2755.0,0.3654]
[1740279609221,3.0,2755.5,2755.0,0.3654]
[1740279609427,1.472904,2755.4,2753.6,0.43796734]
[1740279609597,0.8071,2752.7,2752.0,0.37399791]
[1740279609796,7.0173073,2752.6,2751.7,0.788]
[1740279610091,6.08630597,2753.1,2752.1,3.6335]
[1740279610292,3.6323,2753.1,2752.4,0.788]
[1740279610508,3.6315,2753.7,2752.9,3.63242]
[1740279610706,0.26730902,2754.2,2753.9,3.63117]
[1740279610883,0.26730902,2754.2,2754.1,3.63095]
[1740279611085,0.26730902,2754.2,2754.1,0.788]
[1740279611394,3.63081,2754.2,2754.1,0.788]
[1740279611587,3.63067,2754.4,2753.7,0.29]
[1740279611787,3.63121,2753.9,2753.7,0.29]
[1740279611983,3.63074,2754.3,2753.7,0.29]
[1740279612216,3.63095,2754.1,2753.7,0.29]
[1740279612487,3.63095,2754.1,2753.7,0.760971]
[1740279612718,3.63116,2754.0,2753.7,0.29]
[1740279612920,3.6307,2754.3,2753.7,0.29]
[1740279613118,4.4687,2754.4,2754.0,0.7617]
[1740279613824,4.4687,2754.4,2754.1,3.63093]
[1740279614018,4.4687,2754.4,2754.2,0.439263]
[1740279614721,2.03436777,2754.4,2754.3,3.63068]
[1740279614886,2.03436777,2754.4,2754.3,4.39238]
[1740279615089,3.62902,2755.6,2754.7,3.63006]
[1740279615287,3.62934,2755.4,2754.8,0.29]
[1740279615797,3.62922,2755.5,2754.8,3.92]
[1740279616125,3.62922,2755.5,2754.8,4.312015]
[1740279616289,3.62924,2755.4,2754.8,4.312015]
[1740279616489,3.62922,2755.5,2754.8,4.312015]
[1740279616690,3.6293,2755.4,2754.8,4.312015]
[1740279617507,3.62922,2755.5,2754.8,0.682015]
[1740279617714,3.62939,2755.3,2754.8,0.682015]
[1740279618894,7.25842,2755.5,2754.8,4.311915]
[1740279619094,3.62934,2755.4,2754.8,4.311915]
[1740279619425,3.62939,2755.3,2754.8,0.682015]
[1740279621520,3.62953,2755.2,2754.9,0.288]
[1740279621717,3.6298,2755.0,2754.7,0.288]
[1740279622102,7.25968,2755.0,2754.4,9.02053]
[1740279622317,3.62998,2754.9,2754.5,1.266223]
[1740279622505,3.62975,2755.1,2754.5,1.266223]
[1740279623137,3.62975,2755.1,2754.5,4.896533]
[1740279624219,3.62992,2754.9,2754.5,1.266223]
[1740279624419,3.62975,2755.1,2754.5,1.266223]
[1740279624633,3.62972,2755.1,2754.6,1.0286683]
[1740279625207,7.25948,2755.1,2754.6,1.0286683]
[1740279625539,3.62972,2755.1,2754.6,1.0286683]
[1740279625752,7.25948,2755.1,2754.6,1.0286683]
[1740279625915,3.62972,2755.1,2754.6,1.0286683]
[1740279626116,7.25943,2755.1,2754.7,0.49470383]
[1740279626322,3.62971,2755.1,2754.7,0.49470383]
[1740279626506,7.25941,2755.1,2754.7,0.49470383]
[1740279626910,7.25945,2755.1,2754.7,0.49470383]
[1740279627109,3.6297,2755.1,2754.7,0.49470383]
[1740279627323,7.25941,2755.1,2754.7,0.49470383]
[1740279627517,7.25946,2755.1,2754.7,0.49470383]
[1740279627717,3.6297,2755.1,2754.7,0.49470383]
[1740279628627,3.62917,2755.5,2754.9,4.41158]
[1740279628830,3.62919,2755.5,2754.9,4.41161]
[1740279629136,3.0,2755.5,2754.9,4.41161]
[1740279629309,3.62926,2755.4,2754.9,0.7818]
[1740279630640,7.25859,2755.4,2754.9,0.7818]
[1740279630948,3.62926,2755.4,2754.9,0.7818]
[1740279632322,7.25862,2755.4,2754.9,0.7818]
[1740279632750,3.62926,2755.4,2754.9,0.7818]
[1740279633254,0.55,2755.4,2754.7,5.39]
[1740279633456,3.62923,2755.4,2754.7,5.39]
[1740279633623,3.6293,2755.4,2754.8,3.62996]
[1740279633827,3.0,2755.5,2754.7,5.39]
[1740279634021,3.0,2755.5,2754.7,9.02014]
[1740279634216,3.62965,2755.1,2754.7,5.39]
[1740279634445,3.6295,2755.2,2754.7,5.39]
[1740279635216,3.62943,2755.3,2754.7,5.39]
[1740279635443,3.62943,2755.3,2754.7,9.02009]
[1740279635849,6.39877941,2755.5,2754.7,5.39]
[1740279636048,3.62969,2755.1,2754.7,5.39]
[1740279636247,3.62969,2755.1,2754.8,0.73754792]
[1740279637220,3.62945,2755.3,2754.8,0.73754792]
[1740279637925,7.25891,2755.3,2754.8,0.73754792]
[1740279638261,3.62945,2755.3,2754.8,0.73754792]
[1740279638654,3.62944,2755.3,2754.8,0.73754792]
[1740279639461,3.62944,2755.3,2754.8,4.36755792]
[1740279639755,3.62944,2755.3,2754.8,0.73754792]
[1740279639960,3.62944,2755.3,2754.8,4.36756792]
[1740279640155,3.62944,2755.3,2754.8,0.73754792]
[1740279640460,10.02796941,2755.5,2754.8,4.36756792]
[1740279640637,3.62923,2755.4,2754.8,4.36756792]
[1740279640837,3.6294,2755.3,2754.8,4.36756792]
[1740279641657,3.6294,2755.3,2754.8,4.36750792]
[1740279642563,3.0,2755.5,2754.8,0.73754792]
[1740279642880,3.62923,2755.4,2754.8,4.36756792]
[1740279643080,3.62923,2755.4,2754.8,0.73754792]
[1740279643227,3.62939,2755.3,2754.8,4.36756792]
[1740279643426,3.62931,2755.4,2754.8,4.36756792]
[1740279643646,6.62919,2755.5,2754.9,3.62981]
[1740279643862,3.62925,2755.4,2754.9,3.62981]
[1740279644162,3.62937,2755.3,2754.8,0.73754792]
[1740279644457,3.62937,2755.3,2754.8,4.36755792]
[1740279644651,3.62952,2755.2,2754.8,0.73754792]
[1740279644853,3.62937,2755.3,2754.8,0.73754792]
[1740279646760,3.62937,2755.3,2754.9,0.282]
[1740279647272,7.25882,2755.3,2754.9,0.282]
[1740279647456,3.62937,2755.3,2754.9,0.282]
[1740279648366,7.25881,2755.3,2754.9,0.282]
[1740279648555,3.62937,2755.3,2754.9,0.282]
[1740279649735,7.25883,2755.3,2754.9,0.282]
[1740279650067,3.62937,2755.3,2754.9,0.282]
[1740279651239,4.42212,2756.0,2755.2,3.6295]
[1740279651439,4.42212,2756.0,2755.3,3.62924]
[1740279651440,3.62851,2756.0,2755.3,3.62924]
[1740279651646,3.62858,2755.9,2755.4,0.7888]
[1740279651850,3.62858,2755.9,2755.4,4.41801]
[1740279652269,6.62827,2756.2,2755.4,4.41801]
[1740279652270,3.0,2756.0,2755.4,0.7888]
[1740279652464,3.62883,2755.8,2755.5,0.281]
[1740279652968,3.62886,2755.7,2755.5,1.00873399]
[1740279654076,3.62858,2755.9,2755.5,1.00873399]
[1740279654370,3.6288,2755.8,2755.5,1.00873399]
[1740279654666,3.62885,2755.7,2755.5,1.00873399]
[1740279655044,3.0,2756.0,2755.5,1.00873399]
[1740279655259,3.62869,2755.9,2755.5,1.00873399]
[1740279655646,6.62853,2756.0,2755.5,1.00873399]
[1740279655852,3.0,2756.0,2755.5,4.63774399]
[1740279656159,6.62855,2756.0,2755.5,1.00873399]
[1740279656360,3.0,2756.0,2755.5,4.63782399]
[1740279659288,6.39877941,2756.5,2755.8,0.71057871]
[1740279659492,3.62835,2756.1,2755.8,0.71057871]
[1740279661305,3.62835,2756.1,2755.7,0.777]
[1740279662086,7.25657,2756.2,2755.7,0.777]
[1740279662588,3.62831,2756.1,2755.7,0.777]
[1740279662989,7.25655,2756.2,2755.7,0.777]
[1740279663295,3.62826,2756.2,2755.7,0.777]
[1740279663471,3.62826,2756.2,2755.7,2.22134335]
[1740279664278,3.62826,2756.2,2755.7,5.85016335]
[1740279664597,3.0,2756.3,2755.9,3.62856]
[1740279664796,3.62793,2756.4,2755.9,3.62856]
[1740279664957,3.0,2756.3,2755.9,3.62856]
[1740279665884,3.62793,2756.4,2755.9,0.94787233]
[1740279666084,3.62789,2756.5,2756.0,3.62837]
[1740279666581,7.25578,2756.5,2755.9,3.62856]
[1740279666782,3.62789,2756.5,2755.9,3.62856]
[1740279666985,7.25579,2756.5,2755.9,3.62856]
[1740279667191,7.25575,2756.5,2755.9,3.62856]
[1740279667387,7.25575,2756.5,2755.9,4.431987]
[1740279667578,7.25577,2756.5,2756.1,0.8317]
[1740279668106,3.628,2756.4,2756.1,0.8317]
[1740279668710,3.62805,2756.3,2756.1,0.8317]
[1740279669306,3.62792,2756.4,2756.1,0.8317]
[1740279670277,3.62805,2756.3,2756.1,0.8317]
[1740279670916,3.62788,2756.5,2756.1,0.8317]
[1740279671418,6.62775,2756.6,2756.1,0.8317]
[1740279671616,6.62775,2756.6,2756.1,1.56743807]
[1740279671830,7.85736941,2756.8,2756.2,3.62808]
[1740279672139,3.0,2756.7,2756.2,3.62808]
[1740279672297,6.62754,2756.7,2756.2,3.62808]
[1740279672500,3.62769,2756.6,2756.1,5.71523288]
[1740279672801,3.39877941,2756.8,2756.3,3.62797]
[1740279673010,3.62752,2756.7,2756.3,0.59919929]
[1740279673577,3.0,2756.8,2756.3,4.22715929]
[1740279673917,3.0,2756.9,2756.4,4.38274]
[1740279674414,3.62734,2756.9,2756.4,0.7549]
[1740279674616,3.0,2756.9,2756.4,0.7549]
[1740279675001,3.0,2756.9,2756.4,1.81980893]
[1740279675217,7.25415,2757.1,2756.5,3.62772]
[1740279675388,6.62715,2757.0,2756.5,3.62772]
[1740279675594,3.62694,2757.2,2756.5,3.62772]
[1740279675923,3.62694,2757.2,2756.5,7.25538]
[1740279676082,3.0,2757.1,2756.5,4.59509882]
[1740279676282,3.0,2757.1,2756.6,4.38247]
[1740279676495,3.0,2757.1,2756.7,0.72264382]
[1740279676992,6.62708,2757.1,2756.7,0.72264382]
[1740279677810,3.0,2757.1,2756.7,0.72264382]
[1740279678015,3.62713,2757.0,2756.7,0.72264382]
[1740279678407,6.62699,2757.1,2756.7,0.72264382]
[1740279678713,3.0,2757.1,2756.7,0.72264382]
[1740279678898,6.62706,2757.1,2756.7,0.72264382]
[1740279679516,3.0,2757.1,2756.7,0.72264382]
[1740279679703,3.0,2757.2,2756.7,1.7721592]
[1740279679912,3.0,2757.2,2756.8,7.25464]
[1740279680106,3.0,2757.2,2756.8,3.62732]
[1740279680613,3.0,2757.2,2756.7,1.7721592]
[1740279680926,6.62697,2757.2,2756.7,1.7721592]
[1740279681226,6.62697,2757.2,2756.7,5.3996692]
[1740279681518,6.62697,2757.2,2756.7,1.7721592]
[1740279681686,3.627,2757.1,2756.7,1.7721592]
[1740279682024,3.627,2757.1,2756.7,5.3996592]
[1740279682224,3.627,2757.1,2756.7,1.7721592]
[1740279684220,3.39877941,2757.4,2756.8,0.61546192]
[1740279684420,0.7561,2757.5,2756.7,5.3996192]
[1740279684629,0.7561,2757.5,2756.7,10.7896192]
[1740279684630,3.62681,2757.3,2756.7,10.7896192]
[1740279685121,3.62681,2757.3,2756.8,3.62732]
[1740279685322,3.62694,2757.2,2756.7,7.1621592]
[1740279685625,3.0,2757.2,2756.7,6.11264382]
[1740279685833,3.62726,2757.0,2756.7,5.39]
[1740279686123,3.62713,2757.0,2756.7,5.39]
[1740279686306,0.7561,2757.1,2756.7,5.39]
[1740279686625,3.62739,2756.8,2756.7,5.39]
[1740279686790,3.39877941,2757.0,2756.4,12.8]
[1740279686994,3.62759,2756.7,2756.4,13.075]
[1740279687196,3.62752,2756.8,2756.4,13.075]
[1740279687831,3.62767,2756.6,2756.4,13.075]
[1740279688196,3.62778,2756.5,2756.4,13.075]
[1740279688627,3.62767,2756.6,2756.4,13.075]
[1740279688802,3.62778,2756.5,2756.4,12.8]
[1740279689007,3.62767,2756.6,2756.4,12.8]
[1740279689207,3.62767,2756.6,2756.4,5.39]
[1740279689810,3.62746,2756.8,2756.4,5.39]
[1740279690336,3.0,2756.9,2756.4,10.024437]
[1740279690635,3.62722,2757.0,2756.5,3.62778]
[1740279690818,3.62722,2757.0,2756.4,10.024437]
[1740279690819,6.62726,2756.9,2756.4,10.024437]
[1740279691019,6.62726,2756.9,2756.4,6.396547]
[1740279691212,6.62726,2756.9,2756.4,10.024457]
[1740279691413,6.62726,2756.9,2756.4,4.634457]
[1740279691718,10.25463,2756.9,2756.4,4.634457]
[1740279691902,6.62726,2756.9,2756.4,4.634457]
[1740279693735,6.62726,2756.9,2756.4,8.262287]
[1740279694033,6.62726,2756.9,2756.4,1.006547]
[1740279694402,6.62726,2756.9,2756.4,4.634437]
[1740279694604,3.0,2757.0,2756.5,0.5681737]
[1740279695011,6.62715,2757.0,2756.5,0.5681737]
[1740279695213,3.62748,2756.8,2756.4,1.006547]
[1740279695634,3.62768,2756.6,2756.4,1.006547]
[1740279695821,3.62778,2756.5,2756.3,1.0473]
[1740279696617,3.62767,2756.6,2756.3,1.0473]
[1740279700036,4.44546,2756.8,2756.3,1.0473]
[1740279700219,3.62756,2756.7,2756.3,1.0473]
[1740279700633,3.62756,2756.7,2756.3,2.12653089]
[1740279701046,3.62746,2756.8,2756.3,5.75456089]
[1740279701241,3.62746,2756.8,2756.4,3.6279]
[1740279701714,3.62733,2756.9,2756.3,2.12653089]
[1740279701921,3.62733,2756.9,2756.4,3.62789]
[1740279702132,3.6276,2756.7,2756.3,2.12653089]
[1740279703443,3.62768,2756.6,2756.3,2.12653089]
[1740279704168,3.62751,2756.8,2756.4,0.75165309]
[1740279704608,3.62753,2756.7,2756.4,0.75165309]
[1740279704813,3.6275,2756.8,2756.4,0.75165309]
[1740279705248,3.62738,2756.9,2756.4,4.37950309]
[1740279705874,7.02596941,2757.0,2756.4,0.75165309]
[1740279706159,3.62739,2756.8,2756.4,0.75165309]
[1740279706362,3.62739,2756.8,2756.5,0.6506234]
[1740279706657,7.25488,2756.8,2756.5,0.6506234]
[1740279706862,3.62739,2756.8,2756.5,0.6506234]
[1740279707067,7.25488,2756.8,2756.5,0.6506234]
[1740279707462,3.62739,2756.8,2756.5,0.6506234]
[1740279709217,7.02598941,2757.0,2756.5,0.6506234]
[1740279709456,3.62726,2756.9,2756.5,0.6506234]
[1740279710158,7.25447,2757.0,2756.5,0.6506234]
[1740279710320,3.62721,2757.0,2756.5,0.6506234]
[1740279710520,3.62726,2756.9,2756.5,0.6506234]
[1740279710939,3.62743,2756.8,2756.5,0.6506234]
[1740279711549,3.62726,2756.9,2756.5,0.6506234]
[1740279711753,3.62747,2756.8,2756.4,0.75165309]
[1740279712359,3.62747,2756.8,2756.7,0.71928854]
[1740279714356,3.62726,2756.9,2756.7,0.71928854]
[1740279714668,3.6272,2757.0,2756.7,0.71928854]
[1740279714961,3.62708,2757.1,2756.7,0.71928854]
[1740279715147,3.62727,2756.9,2756.7,0.71928854]
[1740279715536,3.62739,2756.8,2756.7,0.71928854]
[1740279717064,3.62727,2756.9,2756.7,0.71928854]
[1740279717261,3.62704,2757.1,2756.7,0.71928854]
[1740279717455,3.62719,2757.0,2756.7,1.51658854]
[1740279718469,3.62704,2757.1,2756.7,1.51658854]
[1740279718676,3.62713,2757.0,2756.7,1.51658854]
[1740279720444,4.45681,2757.4,2756.7,2.03101739]
[1740279720655,4.45681,2757.4,2756.7,1.51658854]
[1740279720855,3.62683,2757.3,2756.8,3.62738]
[1740279722095,3.62686,2757.3,2756.8,3.62738]
[1740279722392,3.62687,2757.2,2756.9,0.51439685]
[1740279723592,3.62687,2757.2,2756.7,1.51658854]
[1740279723947,3.62706,2757.1,2756.7,1.51658854]
[1740279725371,7.25383,2757.2,2756.7,1.51658854]
[1740279725576,3.39877941,2757.3,2756.7,1.51658854]
[1740279725779,3.62676,2757.3,2756.8,4.44508]
[1740279725994,3.62676,2757.3,2756.9,0.51643685]
[1740279727191,3.62669,2757.4,2756.9,0.51643685]
[1740279727875,3.39877941,2757.5,2757.0,0.8178]
[1740279728082,7.02532941,2757.5,2757.0,4.44483]
[1740279728401,3.62668,2757.4,2757.1,0.269]
[1740279728600,3.62668,2757.4,2757.2,0.73102877]
[1740279729105,7.02531941,2757.5,2757.2,0.73102877]
[1740279729906,3.62642,2757.6,2757.2,1.27552365]
[1740279730085,1.1,2758.0,2757.3,0.8178]
[1740279730274,3.39877941,2757.9,2757.3,6.2078]
[1740279730479,3.62628,2757.7,2757.3,6.2078]
[1740279730988,3.62607,2757.8,2757.3,6.2078]
[1740279731188,3.62623,2757.7,2757.4,1.05656188]
[1740279731380,7.25227,2757.8,2757.4,1.05656188]
[1740279731575,7.25227,2757.8,2757.5,0.8178]
[1740279731814,3.39877941,2757.9,2757.5,0.8178]
[1740279732102,1.1,2758.0,2757.5,3.62641]
[1740279732306,1.1,2758.0,2757.6,1.28609719]
[1740279732627,1.1,2758.0,2757.7,0.72060687]
[1740279732769,4.72585,2758.0,2757.7,0.72060687]
[1740279733106,1.1,2758.0,2757.7,0.72060687]
[1740279733272,3.62604,2757.9,2757.7,0.72060687]
[1740279733471,3.62604,2757.9,2757.7,0.92127728]
[1740279733876,4.72593,2758.0,2757.7,0.92127728]
[1740279734508,8.35183,2758.0,2757.7,0.92127728]
[1740279734806,3.62594,2757.9,2757.7,0.92127728]
[1740279736081,3.62594,2757.9,2757.7,0.20067041]
[1740279736283,3.62594,2757.9,2757.6,0.8178]
[1740279736615,3.62594,2757.9,2757.6,1.55075349]
[1740279737511,3.6261,2757.8,2757.6,1.55075349]
[1740279737711,4.7259,2758.0,2757.6,1.55075349]
[1740279737879,3.62595,2757.9,2757.6,1.55075349]
[1740279738082,0.19216026,2758.0,2757.9,4.44264]
[1740279738304,3.62479,2758.8,2758.2,3.62552]
[1740279738504,0.005,2758.9,2758.3,4.442]
[1740279738702,0.005,2758.9,2758.5,3.62511]
[1740279738907,0.005,2758.9,2758.6,0.8167]
[1740279740582,3.62972,2758.9,2758.6,0.8167]
[1740279741186,0.005,2758.9,2758.6,0.8167]
[1740279741693,0.005,2758.9,2758.6,4.95737521]
[1740279742088,0.005,2758.9,2758.6,1.33242521]
[1740279742697,0.005,2758.9,2758.6,0.8167]
[1740279743510,0.005,2758.9,2758.6,4.44169]
[1740279743820,0.005,2758.9,2758.7,3.62482]
[1740279744001,0.005,2758.9,2758.6,4.44169]
[1740279744509,0.005,2758.9,2758.7,0.268]
[1740279744820,0.005,2758.9,2758.7,0.81051321]
[1740279745222,0.005,2758.9,2758.7,0.268]
[1740279746422,3.62502,2758.6,2758.5,0.71544207]
[1740279746787,3.62529,2758.4,2758.3,5.658]
[1740279747097,4.43949,2758.4,2758.3,5.39]
[1740279747297,3.62544,2758.3,2757.9,2.430566]
[1740279747625,3.62555,2758.2,2758.0,0.84143483]
[1740279748624,0.8142,2758.4,2758.0,0.84143483]
[1740279748923,3.62564,2758.2,2758.0,0.84143483]
[1740279749295,3.62568,2758.1,2757.9,2.430566]
[1740279749597,3.62568,2758.1,2757.9,0.268]
[1740279749804,3.62546,2758.3,2757.9,0.268]
[1740279750026,3.62546,2758.3,2758.0,0.8167]
[1740279750231,3.62523,2758.5,2758.0,0.8167]
[1740279750521,3.62546,2758.3,2758.0,1.52354823]
[1740279750735,3.62535,2758.4,2758.0,1.52354823]
[1740279752029,3.62543,2758.3,2758.0,1.52354823]
[1740279752244,3.62535,2758.4,2758.0,1.52354823]
[1740279753224,3.62504,2758.6,2758.0,5.14929823]
[1740279753225,3.62518,2758.5,2758.0,5.14929823]
[1740279753626,3.62504,2758.6,2758.0,1.52354823]
[1740279753799,3.62532,2758.4,2758.0,1.52354823]
[1740279753996,3.62532,2758.4,2758.1,0.54174282]
[1740279754615,3.62504,2758.6,2758.1,4.16740282]
[1740279754817,3.0,2758.7,2758.1,4.16742282]
[1740279755132,6.62496,2758.7,2758.1,4.16742282]
[1740279755329,6.62496,2758.7,2758.2,3.62553]
[1740279756017,3.62496,2758.7,2758.2,4.19461211]
[1740279756752,3.6251,2758.6,2758.2,0.56908211]
[1740279757140,0.005,2758.9,2758.3,0.788]
[1740279757546,3.62511,2758.6,2758.3,0.788]
[1740279757748,3.62511,2758.6,2758.3,1.4058]
[1740279758758,3.62483,2758.8,2758.3,1.4058]
[1740279758957,3.62489,2758.7,2758.5,0.72044403]
[1740279759166,3.62483,2758.8,2758.5,0.72044403]
[1740279759345,3.62502,2758.6,2758.5,0.72044403]
[1740279759749,7.39142,2758.6,2758.5,0.72044403]
[1740279759938,3.62555,2758.2,2758.1,5.39]
[1740279760138,3.62555,2758.2,2758.0,0.8115]
[1740279761024,3.62568,2758.1,2758.0,0.8115]
[1740279761861,7.25098,2758.3,2758.0,0.8115]
[1740279762045,3.62543,2758.3,2758.0,0.8115]
[1740279762227,3.62543,2758.3,2758.0,2.22042558]
[1740279762430,4.16517941,2758.8,2758.1,3.62564]
[1740279762779,3.62498,2758.7,2758.1,3.6256]
[1740279763122,3.62516,2758.5,2758.0,2.22042558]
[1740279763379,3.62498,2758.7,2758.0,2.22042558]
[1740279763380,3.62498,2758.7,2758.2,3.62548]
[1740279763543,3.62477,2758.8,2758.3,4.350515]
[1740279763743,3.62477,2758.8,2758.4,0.267]
[1740279764075,0.005,2758.9,2758.5,0.8115]
[1740279764236,0.005,2758.9,2758.5,8.06166]
[1740279764435,3.62963,2758.9,2758.6,1.371866]
[1740279764633,3.62963,2758.9,2758.5,0.8115]
[1740279765041,0.005,2758.9,2758.5,4.43659]
[1740279766131,0.005,2758.9,2758.5,0.8115]
[1740279766336,0.005,2758.9,2758.6,3.62495]
[1740279769174,0.005,2758.9,2758.7,4.43638]
[1740279769347,0.005,2758.9,2758.8,5.833638]
[1740279770874,3.62963,2758.9,2758.8,5.39]
[1740279771098,3.62963,2758.9,2758.5,0.71221399]
[1740279771099,3.62502,2758.6,2758.5,0.71221399]
[1740279771862,4.39142,2758.6,2758.1,5.658]
[1740279772063,3.62532,2758.4,2758.1,5.658]
[1740279772263,3.62532,2758.4,2758.3,0.73733387]
[1740279772658,3.62502,2758.6,2758.3,1.37676726]
[1740279772858,3.62519,2758.5,2758.3,1.37676726]
[1740279773064,3.62499,2758.7,2758.3,1.37676726]
[1740279773792,3.62503,2758.6,2758.3,1.37676726]
[1740279774164,3.62503,2758.6,2758.3,0.73733387]
[1740279774366,3.62516,2758.5,2758.3,0.73733387]
[1740279774700,3.62529,2758.4,2758.3,0.73733387]
[1740279775019,0.7864,2758.4,2758.1,5.657]
[1740279775203,3.62555,2758.2,2758.1,5.657]
[1740279775877,4.41172,2758.4,2758.1,6.36809368]
[1740279776290,3.62544,2758.3,2758.1,6.36809368]
[1740279776794,3.62524,2758.5,2758.1,7.14579561]
[1740279776999,3.62535,2758.4,2758.1,7.14579561]
[1740279777197,3.62543,2758.3,2758.1,6.36809368]
[1740279777578,3.62543,2758.3,2758.1,0.97809368]
[1740279778190,3.62543,2758.3,2758.1,0.71109368]
[1740279778766,7.25093,2758.3,2758.1,0.71109368]
[1740279778972,3.62543,2758.3,2758.1,0.71109368]
[1740279779371,3.6251,2758.6,2758.2,0.7662]
[1740279780298,3.62523,2758.5,2758.2,0.7662]
[1740279781224,3.6251,2758.6,2758.2,0.7662]
[1740279781697,3.62518,2758.5,2758.2,0.7662]
[1740279781905,3.62518,2758.5,2758.2,1.0332]
[1740279782083,3.62518,2758.5,2758.2,2.06268615]
[1740279782496,3.62502,2758.6,2758.2,2.06268615]
[1740279783323,7.25014,2758.6,2758.2,2.06268615]
[1740279783531,3.62502,2758.6,2758.2,2.06268615]
[1740279785273,7.25013,2758.6,2758.2,2.06268615]
[1740279785472,3.62502,2758.6,2758.2,2.06168615]
[1740279785710,7.25015,2758.6,2758.2,2.06168615]
[1740279785878,0.005,2758.9,2758.0,1.40892558]
[1740279785879,3.62535,2758.4,2758.0,1.40892558]
[1740279786083,3.62572,2758.1,2757.9,0.7662]
[1740279786289,3.62572,2758.1,2758.0,0.266]
[1740279786574,3.62594,2757.9,2757.8,6.24978232]
[1740279786804,3.62594,2757.9,2757.8,5.98378232]
[1740279787113,7.82141941,2757.9,2757.8,5.98378232]
[1740279788398,3.62637,2757.6,2757.3,0.266]
[1740279788599,3.62637,2757.6,2757.4,0.64222]
[1740279788791,3.62647,2757.5,2757.4,0.64222]
[1740279789401,3.62673,2757.3,2757.2,6.1562]
[1740279789606,3.62673,2757.3,2757.2,1.0322]
[1740279789800,3.62647,2757.5,2757.2,1.0322]
[1740279790016,3.62661,2757.4,2757.2,1.0322]
[1740279792116,3.62673,2757.3,2757.2,0.7662]
[1740279792838,3.62673,2757.3,2757.2,1.0322]
[1740279793481,3.62673,2757.3,2756.9,5.39]
[1740279793709,3.62693,2757.2,2757.0,0.805]
[1740279794712,3.62668,2757.4,2757.0,0.805]
[1740279794911,3.62674,2757.3,2757.0,0.805]
[1740279795805,0.8172,2757.9,2757.0,0.805]
[1740279796049,3.62593,2758.0,2757.4,3.6265]
[1740279796342,3.62593,2758.0,2757.5,3.62644]
[1740279796491,6.62593,2758.0,2757.6,0.752]
[1740279798931,3.0,2758.0,2757.6,4.37829]
[1740279799632,3.62563,2758.2,2757.6,4.37829]
[1740279799633,3.62543,2758.3,2757.7,3.62612]
[1740279799922,3.0,2758.2,2757.8,1.066445]
[1740279800120,3.0,2758.2,2757.8,4.692505]
[1740279800420,3.0,2758.2,2757.9,4.43113]
[1740279801222,3.0,2758.4,2757.9,4.43113]
[1740279801416,3.6252,2758.5,2758.0,3.62578]
[1740279801634,7.85163941,2758.7,2758.1,0.443098]
[1740279801835,3.0,2758.6,2758.1,0.443098]
[1740279802051,3.62492,2758.7,2758.3,0.8052]
[1740279802252,3.62504,2758.6,2758.3,0.8052]
[1740279802653,3.62492,2758.7,2758.3,0.8052]
[1740279802955,3.62506,2758.6,2758.3,1.2925908]
[1740279803161,3.62506,2758.6,2758.3,0.8052]
[1740279803651,0.8329,2758.9,2758.3,0.8052]
[1740279803853,3.8329,2758.9,2758.5,3.62513]
[1740279804159,3.005,2758.9,2758.5,3.62513]
[1740279804358,0.005,2758.9,2758.4,3.62529]
[1740279804529,0.005,2758.9,2758.6,0.266]
[1740279804888,2.89621764,2758.9,2758.6,0.266]
[1740279805843,3.62441,2759.1,2758.7,0.8052]
[1740279806157,3.62444,2759.1,2758.7,0.8052]
[1740279806558,3.62432,2759.2,2758.7,4.43004]
[1740279806984,3.0,2759.1,2758.7,4.43004]
[1740279807151,6.62438,2759.1,2758.7,0.8052]
[1740279807551,3.39877941,2759.3,2758.7,1.274822]
[1740279807787,3.6243,2759.2,2758.7,4.899702]